bitfinex-derivatives/quotes_ETHF0:USTF0_20250505
["timestamp","ask_amount","ask_price","bid_price","bid_amount"]
[1746415721138,4.8883,1794.4,1794.3,10.09138]
[1746415721340,4.8883,1794.4,1794.3,8.9768]
[1746415721842,6.00282,1794.4,1794.3,8.9768]
[1746415722839,4.8883,1794.4,1794.3,8.9768]
[1746415723234,6.00282,1794.4,1794.3,8.9768]
[1746415725244,4.8883,1794.4,1794.3,8.9768]
[1746415725543,6.00282,1794.4,1794.3,8.9768]
[1746415726644,4.8883,1794.4,1794.3,8.9768]
[1746415726940,4.8883,1794.4,1794.3,10.09138]
[1746415727443,4.8883,1794.4,1794.3,8.9768]
[1746415727638,6.00282,1794.4,1794.3,8.9768]
[1746415727839,4.8883,1794.4,1794.3,8.9768]
[1746415728448,6.00282,1794.4,1794.3,8.9768]
[1746415729347,3.2078,1794.6,1794.3,8.9768]
[1746415729550,4.32222,1794.6,1794.4,3.54418]
[1746415729844,4.32222,1794.6,1794.5,1.5891]
[1746415732648,1.11446,1794.5,1794.4,0.8406]
[1746415732847,1.11452,1794.4,1794.3,5.3415]
[1746415733045,3.2078,1794.4,1794.3,1.7375]
[1746415733351,3.6472,1794.5,1794.3,2.85208]
[1746415733549,3.6472,1794.5,1794.4,0.8352]
[1746415733749,3.6472,1794.5,1794.4,2.5644]
[1746415734046,2.8594,1794.5,1794.4,2.5644]
[1746415734349,2.8594,1794.5,1794.4,6.2964]
[1746415738352,2.8594,1794.5,1794.4,3.732]
[1746415739151,2.8594,1794.5,1794.3,3.60587]
[1746415739351,2.8594,1794.5,1794.4,1.6482]
[1746415739651,1.7449,1794.5,1794.4,1.6482]
[1746415739852,1.7449,1794.5,1794.4,2.76272]
[1746415740244,2.85936,1794.5,1794.4,1.6482]
[1746415744458,1.7449,1794.5,1794.4,1.6482]
[1746415744655,2.85936,1794.5,1794.4,1.6482]
[1746415745056,1.7449,1794.5,1794.4,1.6482]
[1746415745359,1.11446,1794.5,1794.4,5.3802]
[1746415745558,6.00204,1794.6,1794.4,6.49472]
[1746415745751,6.00204,1794.6,1794.5,2.4175]
[1746415746056,6.00204,1794.6,1794.5,6.1495]
[1746415748449,4.32224,1794.6,1794.5,6.1495]
[1746415750959,5.93484,1794.6,1794.5,6.1495]
[1746415754363,5.93484,1794.6,1794.5,3.732]
[1746415754557,6.78414,1794.6,1794.5,3.732]
[1746415755164,1.11447,1794.5,1794.3,4.37838]
[1746415755365,1.11447,1794.5,1794.4,1.7055]
[1746415755366,2.71517,1794.5,1794.4,1.7055]
[1746415756064,2.71517,1794.5,1794.4,5.4375]
[1746415756963,2.71517,1794.5,1794.4,9.0385]
[1746415758366,3.2078,1794.6,1794.5,1.11446]
[1746415758663,3.2078,1794.6,1794.5,2.70646]
[1746415759266,3.2078,1794.6,1794.5,6.43846]
[1746415764866,1.6066,1794.7,1794.6,1.11439]
[1746415765077,5.16364,1794.9,1794.7,1.1143]
[1746415765274,1.6028,1794.8,1794.7,1.1143]
[1746415765474,1.6028,1794.8,1794.7,2.7581]
[1746415766081,1.6028,1794.8,1794.7,6.4901]
[1746415766674,1.6028,1794.8,1794.7,10.0911]
[1746415771784,3.2078,1794.9,1794.8,1.11427]
[1746415771986,3.2078,1794.9,1794.8,2.83647]
[1746415772186,3.2078,1794.9,1794.8,6.56847]
[1746415772580,1.604,1795.0,1794.9,1.11421]
[1746415772881,1.604,1795.0,1794.9,4.54691]
[1746415773184,1.604,1795.0,1794.9,8.27891]
[1746415774874,3.2078,1795.1,1795.0,1.11415]
[1746415775074,12.23319919,1795.3,1795.2,1.11402]
[1746415775684,12.23319919,1795.3,1795.1,1.11404]
[1746415775877,1.5901,1795.2,1795.0,7.331]
[1746415776084,4.0158,1795.1,1795.0,7.331]
[1746415776283,5.99258,1795.1,1795.0,7.331]
[1746415776486,7.59688,1795.1,1795.0,7.331]
[1746415777292,7.59688,1795.1,1795.0,3.599]
[1746415779091,7.59688,1795.1,1795.0,7.331]
[1746415779390,7.59688,1795.1,1795.0,3.732]
[1746415780492,12.59688,1795.1,1795.0,3.732]
[1746415780686,7.59688,1795.1,1795.0,3.732]
[1746415781394,1.11424,1794.9,1794.7,3.599]
[1746415781590,4.0503,1794.8,1794.7,3.599]
[1746415781791,7.65317,1794.8,1794.7,3.599]
[1746415782091,7.65317,1794.8,1794.7,7.331]
[1746415783498,4.44537,1794.8,1794.7,7.331]
[1746415783696,7.65317,1794.8,1794.7,7.331]
[1746415788396,6.85067,1794.8,1794.7,7.331]
[1746415789797,6.85067,1794.8,1794.7,8.9366]
[1746415790798,5.7364,1794.8,1794.7,8.9366]
[1746415791097,6.85067,1794.8,1794.7,8.9366]
[1746415791502,6.00817,1794.8,1794.7,8.9366]
[1746415793798,4.8939,1794.8,1794.7,8.9366]
[1746415793998,6.00817,1794.8,1794.7,8.9366]
[1746415797203,2.80037,1794.8,1794.7,8.9366]
[1746415797404,6.00817,1794.8,1794.7,8.9366]
[1746415799899,3.2078,1794.8,1794.7,8.9366]
[1746415800306,3.2078,1794.8,1794.7,10.05093]
[1746415800608,3.2078,1794.8,1794.7,8.9366]
[1746415801208,3.2078,1794.8,1794.7,10.05093]
[1746415801600,3.2078,1794.8,1794.7,8.9366]
[1746415801807,6.93809,1795.1,1794.9,1.11418]
[1746415802003,5.824,1795.1,1795.0,0.8194]
[1746415802194,5.824,1795.1,1795.0,6.2492]
[1746415802401,6.93808,1795.1,1795.0,6.2492]
[1746415802599,10.14588,1795.1,1795.0,6.2492]
[1746415802801,3.2078,1795.1,1795.0,7.36335]
[1746415803900,3.2078,1795.1,1795.0,6.2492]
[1746415804099,4.32188,1795.1,1795.0,6.2492]
[1746415804706,3.2078,1795.1,1795.0,6.2492]
[1746415805008,3.2078,1795.1,1795.0,7.36335]
[1746415806315,3.2078,1795.1,1795.0,10.96035]
[1746415816316,3.2078,1795.3,1795.2,1.11397]
[1746415816913,3.2078,1795.3,1795.2,2.84887]
[1746415817217,3.2078,1795.3,1795.2,6.58087]
[1746415822418,3.2078,1795.3,1795.2,4.84602]
[1746415823021,4.781,1795.3,1795.2,4.84602]
[1746415825725,4.781,1795.3,1795.2,6.54992]
[1746415827015,1.5732,1795.3,1795.2,6.54992]
[1746415828123,4.0235,1795.5,1795.4,1.1139]
[1746415828520,3.2078,1795.5,1795.4,1.1139]
[1746415828829,1.6083,1795.6,1795.5,1.11384]
[1746415829223,1.6083,1795.6,1795.5,6.54734]
[1746415830428,1.6083,1795.6,1795.5,7.37984]
[1746415832823,5.92987,1795.6,1795.5,3.732]
[1746415838530,4.8161,1795.6,1795.5,3.732]
[1746415838732,5.92987,1795.6,1795.5,3.732]
[1746415846338,4.8161,1795.6,1795.5,3.732]
[1746415846532,4.8161,1795.6,1795.5,5.3453]
[1746415846727,5.92987,1795.6,1795.5,5.3453]
[1746415847132,4.8161,1795.6,1795.5,6.45914]
[1746415847733,4.8161,1795.6,1795.5,5.3453]
[1746415848033,5.92987,1795.6,1795.5,5.3453]
[1746415852138,2.72207,1795.6,1795.5,5.3453]
[1746415852335,5.92987,1795.6,1795.5,5.3453]
[1746415853332,2.72207,1795.6,1795.5,5.3453]
[1746415853539,5.92987,1795.6,1795.5,5.3453]
[1746415855038,4.32157,1795.6,1795.5,5.3453]
[1746415855239,3.2078,1795.6,1795.5,6.45914]
[1746415855542,3.2078,1795.6,1795.5,5.3453]
[1746415855839,4.32157,1795.6,1795.5,5.3453]
[1746415856031,5.92037,1795.6,1795.5,5.3453]
[1746415856638,5.92037,1795.6,1795.5,3.732]
[1746415861940,5.92037,1795.6,1795.5,5.4484]
[1746415863243,5.92037,1795.6,1795.5,6.2505]
[1746415864643,4.8066,1795.6,1795.5,7.36434]
[1746415864844,3.2078,1795.6,1795.5,7.36434]
[1746415865644,3.2078,1795.6,1795.5,6.2505]
[1746415866445,4.32157,1795.6,1795.5,6.2505]
[1746415869959,3.2078,1795.6,1795.5,6.2505]
[1746415870350,4.32157,1795.6,1795.5,6.2505]
[1746415871548,3.2078,1795.6,1795.5,6.2505]
[1746415872451,4.32157,1795.6,1795.5,6.2505]
[1746415873248,3.2078,1795.6,1795.5,6.2505]
[1746415873743,3.2078,1795.6,1795.5,7.36434]
[1746415874351,3.2078,1795.6,1795.5,6.2505]
[1746415874654,3.2078,1795.6,1795.5,7.36434]
[1746415875557,2.77506,1795.7,1795.5,7.36434]
[1746415875746,5.98286,1795.7,1795.6,6.1528]
[1746415883460,4.8691,1795.7,1795.6,6.1528]
[1746415883855,5.98281,1795.7,1795.6,6.1528]
[1746415884465,4.8691,1795.7,1795.6,6.1528]
[1746415885066,5.98281,1795.7,1795.6,6.1528]
[1746415885966,4.8691,1795.7,1795.6,7.26657]
[1746415886156,4.8691,1795.7,1795.6,6.1528]
[1746415886357,5.98281,1795.7,1795.6,6.1528]
[1746415888764,3.2078,1795.7,1795.6,6.1528]
[1746415888966,3.2078,1795.7,1795.6,7.26657]
[1746415889467,3.2078,1795.7,1795.6,12.26657]
[1746415890363,3.2078,1795.9,1795.8,1.11365]
[1746415891169,3.2078,1795.9,1795.8,6.52935]
[1746415895260,2.77294,1796.2,1795.8,6.52935]
[1746415895466,2.77294,1796.2,1796.0,1.11347]
[1746415895467,3.2078,1796.1,1796.0,1.11347]
[1746415896172,3.2078,1796.1,1796.0,4.84547]
[1746415902374,1.7188,1796.2,1796.1,1.11346]
[1746415902574,1.7188,1796.2,1796.1,1.94256]
[1746415904283,3.2078,1796.5,1796.4,1.11328]
[1746415904477,4.8457,1796.5,1796.4,1.11328]
[1746415905183,4.8457,1796.5,1796.4,4.84528]
[1746415909584,4.8457,1796.5,1796.4,5.70568]
[1746415910488,4.8457,1796.5,1796.4,6.54368]
[1746415914989,5.95892,1796.5,1796.4,6.54368]
[1746415915190,5.96394372,1796.5,1796.4,6.54368]
[1746415915391,5.96394372,1796.5,1796.4,3.732]
[1746415916091,5.96394372,1796.5,1796.3,4.70033]
[1746415916387,1.6163,1796.4,1796.3,4.70033]
[1746415917085,3.21282372,1796.5,1796.4,1.11328]
[1746415917282,3.21282372,1796.5,1796.4,2.79408]
[1746415917283,4.94632372,1796.5,1796.4,2.79408]
[1746415917484,1.73852372,1796.5,1796.4,2.79408]
[1746415918088,1.73852372,1796.5,1796.4,6.52608]
[1746415918692,1.73852372,1796.5,1796.4,7.32358]
[1746415919692,0.00502372,1796.5,1796.4,7.32358]
[1746415923394,0.00502372,1796.5,1796.4,3.732]
[1746415923395,4.32604372,1796.5,1796.4,3.732]
[1746415923692,6.06084372,1796.5,1796.4,3.732]
[1746415924195,1.11329,1796.4,1796.2,4.69939]
[1746415924392,2.84809,1796.4,1796.2,3.586]
[1746415924794,3.4021,1796.3,1796.2,3.586]
[1746415925095,3.4021,1796.3,1796.2,7.318]
[1746415925595,3.4021,1796.3,1796.2,8.4314]
[1746415927599,3.4021,1796.3,1796.2,7.318]
[1746415927797,4.51544,1796.3,1796.2,7.318]
[1746415928097,3.4021,1796.3,1796.2,8.4314]
[1746415928792,3.4021,1796.3,1796.2,9.2829]
[1746415928991,2.6005,1796.3,1796.2,9.2829]
[1746415929291,2.6005,1796.3,1796.2,10.1206]
[1746415929787,4.32607372,1796.5,1796.3,1.11332]
[1746415930191,3.21282372,1796.5,1796.4,1.94818]
[1746415930397,1.71742372,1796.5,1796.4,1.94818]
[1746415930601,1.71742372,1796.5,1796.4,3.67878]
[1746415931098,1.71742372,1796.5,1796.4,7.41078]
[1746415934001,0.00502372,1796.5,1796.4,7.41078]
[1746415946016,4.0543,1796.9,1796.4,6.2975]
[1746415946218,7.43529919,1797.1,1797.0,1.11291]
[1746415946426,7.43529919,1797.1,1797.0,7.90271]
[1746415947122,7.43529919,1797.1,1797.0,6.43271]
[1746415947323,7.43529919,1797.1,1797.0,10.16471]
[1746415949426,1.6236,1797.2,1797.1,1.11284]
[1746415949618,1.6236,1797.2,1797.1,2.81104]
[1746415955121,5.98576,1797.4,1797.2,1.11274]
[1746415955429,2.73157,1797.3,1797.1,1.11281]
[1746415955631,1.6188,1797.2,1797.1,1.11281]
[1746415955927,5.9858,1797.4,1797.2,1.11273]
[1746415956128,1.6188,1797.3,1797.2,2.77513]
[1746415957929,1.6188,1797.3,1797.2,1.11273]
[1746415962532,2.73152,1797.3,1797.2,1.11273]
[1746415966740,2.73152,1797.3,1797.1,3.582]
[1746415966934,1.6012,1797.2,1797.1,4.69484]
[1746415968337,5.92178,1797.2,1797.1,3.582]
[1746415968535,5.92178,1797.2,1797.0,7.22778]
[1746415968536,1.11284,1797.1,1797.0,3.732]
[1746415968843,4.47864,1797.1,1797.0,3.732]
[1746415969140,1.11291,1797.0,1796.9,3.578]
[1746415969340,6.01041,1797.0,1796.9,3.578]
[1746415969831,1.11305,1796.8,1796.6,55.4712]
[1746415970036,3.2078,1797.0,1796.7,3.578]
[1746415970240,1.6897,1796.9,1796.8,1.7253]
[1746415970733,2.80267,1796.9,1796.8,1.7253]
[1746415970938,2.80267,1796.9,1796.7,4.429]
[1746415971139,1.6897,1796.8,1796.7,4.429]
[1746415971339,1.6897,1796.8,1796.7,5.54209]
[1746415972241,1.6897,1796.8,1796.7,9.27409]
[1746415972441,1.6897,1796.8,1796.7,10.92809]
[1746415974140,1.6897,1796.8,1796.7,7.19609]
[1746415975339,1.6897,1796.8,1796.7,10.92809]
[1746415975941,1.11297,1796.9,1796.7,10.92809]
[1746415976144,1.7161,1796.9,1796.8,2.76843]
[1746415977141,1.7161,1796.9,1796.8,6.50043]
[1746415979547,2.82907,1796.9,1796.8,5.3874]
[1746415979749,3.2078,1797.0,1796.8,6.50043]
[1746415980044,4.32072,1797.0,1796.8,6.50043]
[1746415980241,4.32072,1797.0,1796.9,2.5117]
[1746415981147,8.05272,1797.0,1796.9,2.5117]
[1746415982448,6.9398,1797.0,1796.7,4.429]
[1746415982643,1.11303,1796.8,1796.7,4.429]
[1746415983041,1.7305,1796.8,1796.7,5.54209]
[1746415983237,5.4625,1796.8,1796.7,7.18939]
[1746415984148,3.732,1796.8,1796.7,7.18939]
[1746415987145,4.32055,1797.3,1796.7,11.0763]
[1746415987354,6.01865,1797.3,1797.1,1.1128]
[1746415987547,6.01865,1797.3,1797.2,6.112]
[1746415987548,2.81085,1797.3,1797.2,6.112]
[1746415988151,6.54285,1797.3,1797.2,6.112]
[1746415988950,9.75065,1797.3,1797.2,6.112]
[1746415989355,9.75065,1797.3,1797.2,4.4148]
[1746415991553,8.6379,1797.3,1797.2,4.4148]
[1746415992249,9.75062,1797.3,1797.2,3.576]
[1746416001863,9.75062,1797.3,1797.2,4.68878]
[1746416002261,9.75062,1797.3,1797.2,3.576]
[1746416003261,6.9398,1797.3,1797.2,4.68878]
[1746416003455,6.9398,1797.3,1797.2,6.30248]
[1746416006262,3.732,1797.3,1797.2,6.30248]
[1746416011368,3.2078,1797.4,1797.3,1.11272]
[1746416011662,3.2078,1797.4,1797.3,4.43712]
[1746416012258,6.9398,1797.4,1797.3,4.43712]
[1746416013057,6.9398,1797.4,1797.2,3.576]
[1746416013257,6.9398,1797.4,1797.3,1.11272]
[1746416013462,8.6014,1797.4,1797.3,2.73822]
[1746416015166,4.8694,1797.4,1797.3,2.73822]
[1746416015366,1.11257,1797.6,1797.3,2.73822]
[1746416015367,3.2078,1797.6,1797.3,2.73822]
[1746416015669,3.2078,1797.6,1797.5,1.1126]
[1746416015859,4.7913,1797.6,1797.5,4.6876]
[1746416016059,4.7913,1797.6,1797.5,6.2686]
[1746416016265,8.5233,1797.6,1797.5,6.2686]
[1746416016766,9.63583,1797.6,1797.5,6.2686]
[1746416017466,8.5233,1797.6,1797.5,6.2686]
[1746416018969,8.5233,1797.6,1797.5,7.0934]
[1746416019472,8.5233,1797.6,1797.5,5.9808]
[1746416019665,6.9398,1797.6,1797.5,7.0934]
[1746416020962,3.732,1797.6,1797.5,7.0934]
[1746416021163,1.6482,1797.9,1797.8,1.11241]
[1746416021372,1.6482,1797.9,1797.8,4.68541]
[1746416022170,5.3802,1797.9,1797.8,4.68541]
[1746416022468,6.49255,1797.9,1797.8,3.573]
[1746416022669,6.49255,1797.9,1797.3,1.1127]
[1746416022670,13.16111,1797.9,1797.3,1.1127]
[1746416022870,3.2078,1797.5,1797.4,4.68566]
[1746416023259,6.9398,1797.5,1797.4,4.68566]
[1746416023771,6.9398,1797.5,1797.4,6.33356]
[1746416024472,3.732,1797.5,1797.4,6.33356]
[1746416025171,0.8621,1797.7,1797.6,1.11253]
[1746416025362,2.6005,1797.7,1797.6,1.11253]
[1746416025567,5.8083,1797.7,1797.6,1.93503]
[1746416025773,6.92077,1797.7,1797.5,3.58865]
[1746416025977,1.7384,1797.6,1797.5,3.58865]
[1746416026271,5.4704,1797.6,1797.5,3.58865]
[1746416026975,6.58293,1797.6,1797.4,3.573]
[1746416027174,1.6016,1797.5,1797.4,3.573]
[1746416027374,1.6016,1797.5,1797.4,4.68566]
[1746416027574,1.6016,1797.5,1797.4,6.37856]
[1746416028175,5.3336,1797.5,1797.4,6.37856]
[1746416029972,3.732,1797.5,1797.4,6.37856]
[1746416031173,1.65,1797.7,1797.6,1.11253]
[1746416031382,4.8578,1797.7,1797.6,1.11253]
[1746416031582,4.8578,1797.7,1797.6,1.94663]
[1746416032178,8.5898,1797.7,1797.6,1.94663]
[1746416032379,9.70227,1797.7,1797.6,1.94663]
[1746416032877,8.5898,1797.7,1797.6,1.94663]
[1746416033379,9.3889,1797.7,1797.6,1.94663]
[1746416034978,6.9398,1797.7,1797.6,1.94663]
[1746416035179,8.5387,1797.7,1797.6,1.94663]
[1746416036772,8.5387,1797.7,1797.6,2.78223]
[1746416037179,5.3309,1797.7,1797.6,2.78223]
[1746416039981,8.5387,1797.7,1797.6,1.11253]
[1746416040372,9.3616,1797.7,1797.6,1.11253]
[1746416040574,6.1538,1797.7,1797.6,1.11253]
[1746416045179,6.1538,1797.7,1797.6,2.83963]
[1746416051986,6.1538,1797.7,1797.6,4.68353]
[1746416053181,9.3616,1797.7,1797.6,4.68353]
[1746416059599,10.47407,1797.7,1797.6,4.68353]
[1746416060691,10.47407,1797.7,1797.6,3.571]
[1746416065105,10.47407,1797.7,1797.4,1.6528]
[1746416065106,1.1126,1797.5,1797.4,1.6528]
[1746416065305,1.1126,1797.5,1797.4,3.571]
[1746416065306,4.32044,1797.5,1797.4,3.571]
[1746416065505,1.11266,1797.4,1797.3,7.45025215]
[1746416065806,4.42236,1797.4,1797.3,11.02125215]
[1746416066006,4.42236,1797.4,1797.3,12.13397215]
[1746416066211,8.15436,1797.4,1797.3,12.13397215]
[1746416067007,8.15436,1797.4,1797.3,4.68372]
[1746416067610,7.0417,1797.4,1797.3,4.68372]
[1746416068810,8.15436,1797.4,1797.3,4.68372]
[1746416069011,8.15436,1797.4,1797.3,3.571]
[1746416082702,2.78181,1797.3,1796.8,16.91925215]
[1746416082904,1.11291,1797.0,1796.9,2.4661]
[1746416083104,4.32068,1797.1,1796.9,2.4661]
[1746416083308,4.32068,1797.1,1796.9,3.57905]
[1746416083612,6.00108,1797.1,1797.0,1.605]
[1746416084112,9.73308,1797.1,1797.0,1.605]
[1746416089117,6.52528,1797.1,1797.0,1.605]
[1746416098828,6.52528,1797.1,1797.0,2.71791]
[1746416099521,6.52528,1797.1,1797.0,1.605]
[1746416102125,1.11291,1797.0,1796.9,0.8611]
[1746416102425,1.11303,1796.8,1796.7,4.3772]
[1746416102622,1.11303,1796.8,1796.7,5.2147]
[1746416102825,1.11303,1796.8,1796.7,6.8823]
[1746416103126,5.4755,1796.8,1796.7,7.99539]
[1746416103621,6.58853,1796.8,1796.7,6.8823]
[1746416103926,6.58853,1796.8,1796.7,3.571]
[1746416104127,7.39103,1796.8,1796.7,3.571]
[1746416104627,1.11315,1796.6,1796.5,9.12875215]
[1746416105123,4.84515,1796.6,1796.5,9.12875215]
[1746416105323,7.39115,1796.6,1796.5,9.12875215]
[1746416105525,7.39115,1796.6,1796.5,7.45025215]
[1746416106430,1.11322,1796.5,1796.4,3.571]
[1746416106724,1.7207,1796.5,1796.4,5.168]
[1746416106915,2.83392,1796.5,1796.4,5.168]
[1746416107118,6.56592,1796.5,1796.4,5.168]
[1746416112226,6.56592,1796.5,1796.4,3.571]
[1746416114831,5.4527,1796.5,1796.4,6.35668]
[1746416115931,5.4527,1796.5,1796.4,5.2434]
[1746416117134,5.4527,1796.5,1796.4,6.35668]
[1746416117433,6.56592,1796.5,1796.4,5.2434]
[1746416118739,6.56592,1796.5,1796.4,3.571]
[1746416120137,5.4527,1796.5,1796.4,4.68428]
[1746416120336,5.4527,1796.5,1796.4,6.29388]
[1746416120936,6.56592,1796.5,1796.4,6.29388]
[1746416121835,5.4527,1796.5,1796.4,6.29388]
[1746416122036,6.56592,1796.5,1796.4,5.1806]
[1746416122339,6.56592,1796.5,1796.4,6.29388]
[1746416124139,6.56592,1796.5,1796.4,5.1806]
[1746416124541,6.56592,1796.5,1796.4,6.29388]
[1746416125747,6.56592,1796.5,1796.4,5.1806]
[1746416126345,6.56592,1796.5,1796.4,3.571]
[1746416127845,9.77372,1796.5,1796.4,3.571]
[1746416133740,2.7832,1796.4,1796.1,6.091]
[1746416134046,1.1134,1796.2,1796.1,3.57]
[1746416134437,3.2078,1796.3,1796.2,1.1134]
[1746416134641,3.2078,1796.3,1796.2,4.3277]
[1746416134847,3.732,1796.6,1796.2,11.4221]
[1746416135145,3.732,1796.6,1796.5,1.11322]
[1746416135343,1.11291,1797.0,1796.8,1.113]
[1746416135544,1.11291,1797.0,1796.9,4.3597]
[1746416135945,2.69081,1797.0,1796.9,4.3597]
[1746416136146,6.42281,1797.0,1796.9,4.3597]
[1746416137243,6.42281,1797.0,1796.9,5.2237]
[1746416138850,3.732,1797.0,1796.9,5.2237]
[1746416139352,4.84491,1797.0,1796.9,6.9459]
[1746416140355,3.732,1797.0,1796.9,8.05887]
[1746416144052,4.84491,1797.0,1796.9,8.05887]
[1746416144948,3.732,1797.0,1796.9,8.05887]
[1746416145854,4.84491,1797.0,1796.9,8.05887]
[1746416146759,4.84491,1797.0,1796.9,6.9459]
[1746416147557,4.84491,1797.0,1796.9,8.05887]
[1746416148153,4.84491,1797.0,1796.9,6.9459]
[1746416148360,4.84491,1797.0,1796.9,3.57]
[1746416148547,7.24481,1797.0,1796.9,3.57]
[1746416158569,10.45261,1797.0,1796.9,3.57]
[1746416169572,9.64111,1797.0,1796.9,3.57]
[1746416169760,9.64111,1797.0,1796.9,6.0372]
[1746416170367,8.05271,1797.0,1796.9,6.0372]
[1746416170870,4.84491,1797.0,1796.9,6.0372]
[1746416174275,8.05271,1797.0,1796.9,6.0372]
[1746416175176,8.05271,1797.0,1796.9,3.57]
[1746416175371,8.85191,1797.0,1796.9,3.57]
[1746416185979,8.05271,1797.0,1796.9,3.57]
[1746416186177,8.05271,1797.0,1796.9,5.2922]
[1746416189688,6.9398,1797.0,1796.9,6.40517]
[1746416190685,6.9398,1797.0,1796.9,11.40517]
[1746416191286,8.05271,1797.0,1796.9,11.40517]
[1746416191485,8.05271,1797.0,1796.9,5.2922]
[1746416194588,4.84491,1797.0,1796.9,5.2922]
[1746416194786,4.84491,1797.0,1796.9,6.40517]
[1746416195580,3.732,1797.0,1796.9,6.40517]
[1746416197194,3.732,1797.0,1796.9,9.61297]
[1746416198188,1.11272,1797.3,1797.2,1.11278]
[1746416198393,2.78411,1797.4,1797.2,4.67778]
[1746416198689,2.78411,1797.4,1797.3,2.4371]
[1746416198883,2.78411,1797.4,1797.3,3.2439]
[1746416199082,6.51611,1797.4,1797.3,3.2439]
[1746416199281,4.84471,1797.4,1797.3,3.2439]
[1746416199486,4.84471,1797.4,1797.3,4.35662]
[1746416199988,4.84471,1797.4,1797.3,3.2439]
[1746416200289,6.54901,1797.4,1797.3,4.35662]
[1746416200788,5.4363,1797.4,1797.3,4.35662]
[1746416200990,6.54896,1797.4,1797.3,4.35662]
[1746416201585,5.4363,1797.4,1797.3,4.35662]
[1746416201789,3.732,1797.4,1797.3,4.35662]
[1746416207393,4.84466,1797.4,1797.3,4.35662]
[1746416207593,3.732,1797.4,1797.3,4.35662]
[1746416208695,4.84466,1797.4,1797.3,3.2439]
[1746416210096,3.732,1797.4,1797.3,4.35662]
[1746416210298,5.4029,1797.4,1797.3,4.35662]
[1746416211697,3.732,1797.4,1797.3,4.35662]
[1746416215102,4.32031,1797.7,1797.6,1.11253]
[1746416215305,4.32031,1797.7,1797.6,4.67353]
[1746416217004,8.05231,1797.7,1797.6,4.67353]
[1746416218104,6.9398,1797.7,1797.6,4.67353]
[1746416219204,8.6302,1797.7,1797.6,7.20293]
[1746416220507,5.4224,1797.7,1797.6,7.20293]
[1746416221005,8.6302,1797.7,1797.6,7.20293]
[1746416222908,9.74267,1797.7,1797.6,3.561]
[1746416223212,10.59307,1797.7,1797.6,3.561]
[1746416231114,1.11266,1797.4,1797.3,5.2195]
[1746416231305,1.11272,1797.3,1797.2,1.665]
[1746416231506,2.72482,1797.3,1797.2,3.561]
[1746416232112,6.45682,1797.3,1797.2,3.561]
[1746416235813,5.3441,1797.3,1797.2,4.67378]
[1746416236014,5.3441,1797.3,1797.2,6.32218]
[1746416236915,6.45682,1797.3,1797.2,5.2094]
[1746416237615,3.732,1797.3,1797.2,6.32218]
[1746416240420,4.84472,1797.3,1797.2,6.32218]
[1746416240623,4.84472,1797.3,1797.2,5.2094]
[1746416243418,1.11278,1797.2,1797.1,3.559]
[1746416243617,6.05638,1797.2,1797.1,3.559]
[1746416243817,6.05638,1797.2,1797.1,4.3945]
[1746416244115,9.78838,1797.2,1797.1,5.9746]
[1746416244619,8.6756,1797.2,1797.1,7.08744]
[1746416245420,3.732,1797.2,1797.1,7.08744]
[1746416246421,4.84478,1797.2,1797.1,5.9746]
[1746416246721,3.732,1797.2,1797.1,7.08744]
[1746416247221,4.84478,1797.2,1797.1,5.9746]
[1746416247723,4.84478,1797.2,1797.1,7.08744]
[1746416248319,4.84478,1797.2,1797.1,3.559]
[1746416248514,1.11284,1797.1,1797.0,1.11287]
[1746416248710,2.74504,1797.1,1797.0,4.67187]
[1746416248919,2.74504,1797.1,1797.0,3.559]
[1746416249121,6.47704,1797.1,1797.0,3.559]
[1746416249325,6.47704,1797.1,1797.0,5.218]
[1746416253829,6.47704,1797.1,1797.0,3.559]
[1746416255222,1.11291,1797.0,1796.9,3.559]
[1746416255521,7.60111,1797.0,1796.9,3.559]
[1746416256129,11.33311,1797.0,1796.9,3.559]
[1746416258829,11.33311,1797.0,1796.9,4.3963]
[1746416260329,11.33311,1797.0,1796.9,3.559]
[1746416261029,10.46181,1797.0,1796.9,3.559]
[1746416261232,10.46181,1797.0,1796.9,4.3714]
[1746416262533,1.11297,1796.9,1796.8,3.56]
[1746416262735,3.63707,1796.9,1796.8,3.56]
[1746416263133,7.36907,1796.9,1796.8,3.56]
[1746416269234,10.57687,1796.9,1796.8,3.56]
[1746416277144,7.36907,1796.9,1796.8,3.56]
[1746416277447,7.36907,1796.9,1796.8,4.4306]
[1746416277745,10.57687,1796.9,1796.8,4.4306]
[1746416278138,7.36907,1796.9,1796.8,4.4306]
[1746416278338,10.57687,1796.9,1796.8,4.4306]
[1746416278747,9.78027,1796.9,1796.8,4.4306]
[1746416281350,9.78027,1796.9,1796.8,5.2764]
[1746416286750,8.05277,1796.9,1796.8,5.2764]
[1746416289443,3.732,1796.9,1796.8,6.38943]
[1746416289649,3.732,1796.9,1796.8,11.38943]
[1746416290049,3.732,1796.9,1796.8,6.38943]
[1746416290741,3.732,1796.9,1796.8,5.2764]
[1746416291249,4.84497,1796.9,1796.8,5.2764]
[1746416291549,4.84497,1796.9,1796.8,7.97313]